Cogmind - Beta 13 @@@ ROGUE MODE // 2024.05.22 @ 18:20:25 Player: kupcio12 Result: Destroyed by 9A-4JC(R) with Subdweller Laser Performance ------------- Evolutions (0) 0 Regions Visited (3) 600 Robots Destroyed (27) 135 Value Destroyed (705) 705 Prototype IDs (2) 40 Alien Tech Used (0) 0 Bonus (-482) -482 TOTAL SCORE: 998 Bonus ------- Friendly Fire -482 Cogmind --------- Core Integrity 0/250 Matter 247/300 Energy 160/160 System Corruption 0% Temperature Cool (6) Movement Rolling (140) Ox3 Location -10/Subcaves Parts ------- > --- POWER (1) -------- Light Nuclear Core > --- PROPULSION (2) --- Aluminum Leg Subdweller Monowheel > --- UTILITY (2) ------ Large Storage Unit High-capacity Storage Unit > --- WEAPON (2) ------- Medium Laser > --- INVENTORY (20) --- Light Ion Engine Light Ion Engine Light Nuclear Core Aluminum Leg Aluminum Leg Aluminum Leg Hover Unit Heat Sink Small Storage Unit Large Storage Unit Large Matter Pod (150) High-capacity Matter Pod (8) Structural Scanner Sensor Array ECM Suite Small Laser Light Assault Rifle Light Assault Rifle Grenade Launcher Peak State ------------ > --- POWER ------------ Light Nuclear Core > --- PROPULSION ------- Aluminum Leg Subdweller Monowheel > --- UTILITY ---------- Large Storage Unit High-capacity Storage Unit > --- WEAPON ----------- Beam Cannon Grenade Launcher > --- INVENTORY -------- Light Ion Engine Light Ion Engine Light Nuclear Core Aluminum Leg Aluminum Leg Aluminum Leg Hover Unit Heat Sink Small Storage Unit Large Storage Unit Large Matter Pod High-capacity Matter Pod Structural Scanner Sensor Array ECM Suite Medium Laser Small Laser Light Assault Rifle Light Assault Rifle Grenade Launcher [Rating: 12] Favorites ----------- Power Ion Engine Engine Ion Engine Power Core Light Nuclear Core Propulsion Compact Wheel Leg Aluminum Leg Wheel Compact Wheel Utility Large Storage Unit Storage Large Storage Unit Weapon Light Assault Rifle Energy Gun Medium Laser Energy Cannon Beam Cannon Ballistic Gun Light Assault Rifle Launcher Grenade Launcher Build | -11 -10 -10 -10 ------- Run | Yrd Mat Min Sub Slots Evolved . | . . . . Power . | . . . . Propulsion . | . . . . Utility . | . . . . Weapon . | . . . . Parts Attached 27 | 6 12 7 2 Power 4 | 1 2 1 . Engine 2 | 1 1 . . Core 2 | . 1 1 . Reactor . | . . . . Propulsion 10 | 2 3 4 1 Treads . | . . . . Leg 3 | . . 3 . Wheel 7 | 2 3 1 1 Hover . | . . . . Flight . | . . . . Utility 3 | 1 2 . . Device . | . . . . Storage 3 | 1 2 . . Processor . | . . . . Hackware . | . . . . Protection . | . . . . Artifact . | . . . . Weapon 10 | 2 5 2 1 Energy Gun 1 | . . . 1 Energy Cannon 1 | . . 1 . Ballistic Gun 7 | 2 5 . . Ballistic Cannon . | . . . . Launcher 1 | . . 1 . Special Weapon . | . . . . Impact Weapon . | . . . . Slashing Weapon . | . . . . Piercing Weapon . | . . . . Special Melee Weapon . | . . . . Unidentified Prototypes . | . . . . Parts Lost 7 | . 1 4 2 Power . | . . . . Propulsion 3 | . 1 2 . Utility . | . . . . Weapon 4 | . . 2 2 Highest Loss Streak 3 | . 1 3 1 To Critical Strikes . | . . . . Average Slot Usage (%) 97 | . 98 96 98 Engine 6 | . 11 . . Core 7 | . 2 14 14 Leg 7 | . . 16 21 Wheel 19 | . 27 10 6 Storage 27 | . 27 28 28 Energy Cannon 3 | . . 7 13 Ballistic Gun 19 | . 27 12 . Launcher 3 | . . 6 10 Naked Turns . | . . . . Heaviest Build 71 | 12 69 71 71 Greatest Support 26 | 26 26 26 20 Greatest Overweight (x) 6 | . 6 6 3 Average Overweight (x) 1 | . 1 2 3 Largest Inventory Capacity 20 | 8 20 20 20 Average Capacity 17 | 7 16 20 20 Most Carried 20 | 4 20 20 20 Average Carried 13 | 1 10 19 19 Final Capacity 20 | 8 20 20 20 Final Carried 20 | 4 20 19 19 Class Distribution -------------------- 100% | Mutant Dominant Class ---------------- Mutant | -10/Materials Mutant | -10/Mines Mutant | -10/Subcaves Resources | -11 -10 -10 -10 ----------- Run | Yrd Mat Min Sub Matter Collected 846 | 251 202 325 68 Remotely . | . . . . Salvage Created 913 | . 353 278 282 Parts 52 | . 27 12 13 Haulers Intercepted . | . . . . Recyclers Shooed 1 | . . 1 . Parts Field Recycled . | . . . . Retrieved Matter . | . . . . Parts Self-Destructed . | . . . . Prevented . | . . . . Kills | -11 -10 -10 -10 ------- Run | Yrd Mat Min Sub Combat Hostiles Destroyed 21 | . 8 7 6 Guns 11 | . 8 2 1 Cannons 2 | . . 2 . AOE 8 | . . 3 5 Classes Destroyed 7 | . 4 1 2 Worker 1 | . 1 . . Recycler 1 | . . 1 . Watcher 1 | . 1 . . Swarmer 5 | . 2 3 . Grunt 10 | . 6 4 . Subdweller 6 | . . . 6 Thug 2 | . . . 2 Guerrilla 1 | . . . 1 Best Kill Streak 6 | . 5 3 6 Combat Bots Only 6 | . 4 3 6 Max Kills in Single Turn 3 | . 1 3 3 Gunslinging . | . . . . Exploded 3 | . . 3 2 Melee . | . . . . Uniques/NPCs Destroyed . | . . . . Combat | -11 -10 -10 -10 -------- Run | Yrd Mat Min Sub Hostile Shots Fired 91 | . 48 31 12 Missed 19 | . 11 6 2 Damage Taken 991 | . 427 308 256 Core 268 | . 123 78 67 Absorbed by Shields . | . . . . Core Remaining (%) 100 | 100 . . . Volleys Fired 71 | . 36 20 15 Largest 2 | . 2 2 2 Hottest 110 | . 40 90 110 Shots Fired 131 | . 72 34 25 Gun 99 | . 72 23 4 Cannon 23 | . . 9 14 Launcher 9 | . . 2 7 Special . | . . . . Kinetic 95 | . 72 23 . Thermal 27 | . . 9 18 Explosive 9 | . . 2 7 Electromagnetic . | . . . . Robot Hit Streak 17 | . 17 6 9 Robot Miss Streak 4 | . 4 3 1 Penetration Max . | . . . . Secondary Targets 1 | . 1 . . Max Gunslinging Chain 1 | . 1 . . Shots Hit Robots 75 | . 42 19 14 Core Hits 54 | . 22 15 17 Critical Kills . | . . . . Critical Parts Destroyed 1 | . 1 . . Critical Strikes 1 | . 1 . . Destroy 1 | . 1 . . Melee Attacks . | . . . . Impact . | . . . . Slashing . | . . . . Piercing . | . . . . Sneak Attacks . | . . . . Combat Hostiles . | . . . . Follow-up Attacks . | . . . . Damage Inflicted 2099 | . 454 446 1199 Guns 660 | . 454 169 37 Cannons 282 | . . 106 176 Explosions 1154 | . . 168 986 Melee . | . . . . Ramming 3 | . . 3 . Kinetic 623 | . 454 169 . Thermal 319 | . . 106 213 Explosive 1154 | . . 168 986 Electromagnetic . | . . . . Impact . | . . . . Slashing . | . . . . Piercing . | . . . . Highest Corruption . | . . . . Average Corruption . | . . . . Corruption Purged . | . . . . Corruption Blocked . | . . . . Overload Shots . | . . . . Overflow Damage 13 | . . 13 . Projectiles . | . . . . Explosions 13 | . . 13 . Melee . | . . . . Knockbacks . | . . . . Impact . | . . . . Kinetic . | . . . . Secondary . | . . . . Self-Inflicted Damage . | . . . . Shots . | . . . . Rammed . | . . . . Targets Rammed 1 | . . 1 . Kicked 1 | . . 1 . Crushed . | . . . . Highest Temperature 240 | . 18 240 6 Average Temperature 60 | . 10 82 4 Received Heat Transfer 435 | . 213 162 60 Effects 1 | . . 1 . Energy Bleed 1 | . . 1 . Siege Activations . | . . . . Robots Corrupted . | . . . . Combat Hostiles . | . . . . Parts Fried . | . . . . Impact Corruptions . | . . . . Robots Melted . | . . . . Combat Hostiles . | . . . . Parts Melted 1 | . . 1 . Heat Transferred 703 | . . 222 481 Parts Sabotaged . | . . . . Parts Stolen . | . . . . Parts Stripped . | . . . . Power Chain Reactions . | . . . . Alert | -11 -10 -10 -10 ------- Run | Yrd Mat Min Sub Peak Influence 192 | . 192 185 . Initial 37 | . . 37 . Average 61 | . 58 75 . Maximum Alert Level . | . . . . Low Security (%) 100 | 100 100 100 . Level 1 . | . . . . Level 2 . | . . . . Level 3 . | . . . . Level 4 . | . . . . Level 5 . | . . . . High Security . | . . . . Max Security . | . . . . Squads Dispatched 1 | . 1 . . Investigation 1 | . 1 . . Extermination . | . . . . Reinforcement . | . . . . Assault . | . . . . Garrison . | . . . . Intercept . | . . . . Searches Triggered . | . . . . Construction Impeded . | . . . . Haulers Reinforced . | . . . . Active Scanning Responses . | . . . . Cargo Convoy Interrupts . | . . . . Stealth | -11 -10 -10 -10 --------- Run | Yrd Mat Min Sub Distress Signals . | . . . . Communications Jammed . | . . . . Distress Signals . | . . . . Times Spotted 31 | . 13 7 11 Peak Tracking Total 5 | . 3 3 5 Tactical Retreats . | . . . . Traps | -11 -10 -10 -10 ------- Run | Yrd Mat Min Sub Traps Triggered 4 | . 4 . . Indirectly . | . . . . Trap Hack Attempts . | . . . . Triggered . | . . . . Disarmed . | . . . . Reprogrammed . | . . . . Reused . | . . . . Traps Extracted . | . . . . Installed . | . . . . Triggered . | . . . . Machines | -11 -10 -10 -10 ---------- Run | Yrd Mat Min Sub Machines Disabled . | . . . . Max in Single Turn . | . . . . Machines Repaired . | . . . . Machines Dismantled . | . . . . Machines Sabotaged . | . . . . Overloaded Fab Kills . | . . . . Hacking | -11 -10 -10 -10 --------- Run | Yrd Mat Min Sub Machines Accessed 4 | . 4 . . Terminals 4 | . 4 . . Fabricators . | . . . . Repair Stations . | . . . . Recycling Units . | . . . . Scanalyzers . | . . . . Garrison Access . | . . . . Total Hacks 13 | . 13 . . Successful 3 | . 3 . . Failed 10 | . 10 . . Catastrophic 1 | . 1 . . Database Lockouts . | . . . . Manual . | . . . . Terminals 13 | . 13 . . Fabricators . | . . . . Repair Stations . | . . . . Recycling Units . | . . . . Scanalyzers . | . . . . Garrison Access . | . . . . Terminal Hacks 3 | . 3 . . Robot Analysis 1 | . 1 . . Prototype ID Bank 1 | . 1 . . Branch Access Points 1 | . 1 . . Fabricator Hacks . | . . . . Repair Station Hacks . | . . . . Recycling Unit Hacks . | . . . . Scanalyzer . | . . . . Garrison Access Hacks . | . . . . Unauthorized Hacks . | . . . . Terminals . | . . . . Fabricators . | . . . . Repair Stations . | . . . . Recycling Units . | . . . . Scanalyzers . | . . . . Garrison Access . | . . . . Data Cores Recovered . | . . . . Used . | . . . . Hacking Detections 4 | . 4 . . Full Trace Events 1 | . 1 . . Feedback Events . | . . . . Feedback Blocked . | . . . . Robot Schematics Acquired . | . . . . Robots Built . | . . . . Authchips . | . . . . Time . | . . . . Total Robot Build Rating . | . . . . Part Schematics Acquired . | . . . . Parts Built . | . . . . Authchips . | . . . . Time . | . . . . Total Part Build Rating . | . . . . Parts Repaired . | . . . . Time . | . . . . Parts Recycled . | . . . . Recycled Matter . | . . . . Retrieved Matter . | . . . . Retrieved Components . | . . . . Parts Scanalyzed . | . . . . Part Schematics Acquired . | . . . . Parts Damaged . | . . . . Bothacking | -11 -10 -10 -10 ------------ Run | Yrd Mat Min Sub Used RIF Installer . | . . . . Robots Hacked . | . . . . Non-combat . | . . . . Combat . | . . . . Robot Hacks Applied . | . . . . Relay Couplers Released . | . . . . Fabnet Peak Effective % . | . . . . Robots Rewired . | . . . . Allies Hacked . | . . . . Hacks Repelled . | . . . . Allies | -11 -10 -10 -10 -------- Run | Yrd Mat Min Sub Total Allies . | . . . . Largest Group . | . . . . Highest-Rated Group . | . . . . Highest-Rated Ally . | . . . . Total Orders . | . . . . Ally Attacks . | . . . . Total Damage . | . . . . Kills . | . . . . Allies Corrupted . | . . . . Allies Melted . | . . . . Intel | -11 -10 -10 -10 ------- Run | Yrd Mat Min Sub Robot Analysis Total 1 | . 1 . . Derelict Logs Recovered 1 | . . 1 . Drone Launches . | . . . . Drone Recoveries . | . . . . Exploration | -11 -10 -10 -10 ------------- Run | Yrd Mat Min Sub Turns Passed 1542 | 55 864 448 175 Spaces Moved 577 | 47 301 174 55 Core 2 | 2 . . . Treads . | . . . . Legs 91 | . . 67 24 Wheels 484 | 45 301 107 31 Hover . | . . . . Flight . | . . . . Fastest Speed 50 | 50 90 120 140 Average Speed 150 | 89 114 208 222 Slowest Speed 540 | 100 170 540 330 Overloaded Moves . | . . . . Propulsion Burnouts . | . . . . Robots Hopped . | . . . . Cave-ins Triggered . | . . . . Exploration Rate (%) 22 | 3 48 35 3 Regions Visited 3 Branch Regions 2 Pre-discovered Areas 1 | . . 1 . Known Exits Taken 1 | . 1 . . Unknown Exits Taken 2 | 1 . 1 . Scrap Searched 2 | . . 2 . Spaces Dug . | . . . . Terrain Destroyed 69 | . . 15 54 Melee . | . . . . Projectile . | . . . . AOE 69 | . . 15 54 Terrain Rammed . | . . . . Walls Destroyed . | . . . . Machines Disabled . | . . . . Actions | -11 -10 -10 -10 --------- Run | Yrd Mat Min Sub Total 1112 | 56 750 224 82 Wait 415 | . 386 20 9 Move 574 | 46 300 173 55 Hop . | . . . . Pick Up 21 | 4 14 2 1 Fast Attach 14 | 6 7 1 . Attach 4 | . . 3 1 Detach . | . . . . Swap 9 | . 5 3 1 Drop 3 | . 2 1 . Fire 71 | . 36 20 15 Melee . | . . . . Ram . | . . . . Kick 1 | . . 1 . Crush . | . . . . Escape Stasis . | . . . . Rewire . | . . . . Trap . | . . . . Miscellaneous . | . . . . Route ------- -11/Scrapyard -10/Materials (discovered 2 exits: [*Mat] / *Min) -10/Mines (discovered 2 exits: [*Mat] / [*Sub]) -10/Subcaves (discovered 1 exit: [*Mat]) History --------- Turn | Location | Event 7 | -11/Scrapyard | Discovered new exit (range 16) 56 | -11/Scrapyard | Entered Materials 313 | -10/Materials | Build established: Mutant 623 | -10/Materials | Identified exit to Mines 700 | -10/Materials | Discovered new exit (range 15) 920 | -10/Materials | Entered Mines 940 | -10/Mines | Discovered new exit (range 9) 1037 | -10/Mines | Core integrity fell below 50% 1081 | -10/Mines | Learned location of Zion (-6) 1159 | -10/Mines | Lost 3 parts (1n2w) 1278 | -10/Mines | Core integrity fell below 20% 1338 | -10/Mines | Discovered new exit (range 9) 1368 | -10/Mines | Entered Subcaves 1476 | -10/Subcaves | Ambushed by swarm of Subdwellers 1516 | -10/Subcaves | Lost 4 allies 1530 | -10/Subcaves | Discovered new exit (range 10) 1543 | -10/Subcaves | Destroyed by 9A-4JC(R) with Subdweller Laser Last Messages --------------- 01485_ W0-W92(h) destroyed. 01488_ PE-M5Y(R) destroyed. 01488_ FB-SWO(R) destroyed. 01491_ KE-KC3(R) destroyed. 01494_ Grenade Launcher destroyed. 01495_ Subatomizers dissect the Disposable Heat Sink. 01496_ The unstable cave ceiling collapses. 01506_ Subatomizers dissect the Disposable Heat Sink. 01507_ Destroyed Scrap Shield. 01510_ YD-A7K(R) destroyed. 01517_ Subatomizers dissect the Disposable Heat Sink, destroying it. 01518_ The unstable cave ceiling collapses. 01518_ Acquired 7 matter. 01530_ Subatomizers dissect the Beamcaster. 01530_ The unstable cave ceiling collapses. 01530_ EXIT=FOUND 01539_ Beam Cannon destroyed. Map ----- +----------------------------------------------------+ | | | | | | | | | ?????????????????????????????????????????????????? | | ?????????????????????????????????????????????????? | | ?????????????????????????????????????????????????? | | ?????????????????????????????????????????????????? | | ?????????????????????????????????????????????????? | | ?????????????????????????????????????????????????? | | ?????????????????????????????????????????????????? | | ?????????????????????????????????????????????????? | | ?????????????????????????????????????????????????? | | ?????????????????????????????????????????????????? | | ?????????????????????????????????????????????????? | | ???????????????????????????????######????????????? | | ??????????????????????????????## # ####?????????? | | ??????????????????????????????# #?????###?# | | ??????????????????????????????# & # # &####### ### | | ???????????????????????######## %= %! "### #"""" | | ??????????????????#??### # * [! ""# " | | ??????????????????# # ## ! !% & | | ??????????????????# !=& ![ &# " | | ??????????????????## # # ! # ### """" | | ???????????????????????## ######## ### # ## ## | | ???????????????????????##@##??????##?############# | | ???????????????????????# #?????????????????????? | | ???????????????????????##R##?????????????????????? | | ????????????????????????R ??????????????????????? | | ???????????????????????? ??????????????????????? | | ??????????????????????? ?????????????????????? | | ??????????????????????? < ?????????????????????? | | ??????????????????????# #????????????????????? | | ??????????????????????## ????????????????????? | | ???????????????????????######????????????????????? | | ?????????????????????????????????????????????????? | | ?????????????????????????????????????????????????? | | ?????????????????????????????????????????????????? | | ?????????????????????????????????????????????????? | | ?????????????????????????????????????????????????? | | ?????????????????????????????????????????????????? | | ?????????????????????????????????????????????????? | | ?????????????????????????????????????????????????? | | ?????????????????????????????????????????????????? | | ?????????????????????????????????????????????????? | | ?????????????????????????????????????????????????? | | ?????????????????????????????????????????????????? | | ?????????????????????????????????????????????????? | | ?????????????????????????????????????????????????? | | ?????????????????????????????????????????????????? | +----------------------------------------------------+ Best States ------------- Heat Dissipation 25 Energy Generation 14 Energy Capacity 250 Matter Stores 300 Matter Capacity 300 Sight Range 16 Terrain Scan Density 10 Evasion (%) 42 Item Schematics ----------------- None Robot Schematics ------------------ None Fabricated ------------ Nothing Alien Tech Used ----------------- None Achievements -------------- None Challenges ------------ None Game ------ Seed GaussAnalysisScreen Manual? 0 Play Time 00:16:50 Cumulative 11.8 hours Start 2024.05.22 @ 11:54:33 End 2024.05.22 @ 18:20:25 Sessions 2 Manual Loads 0 Difficulty Rogue Special Mode None Game No. 9 Rogue 4 Adventurer 5 Explorer 0 Win Type - Total 0 Types 0/0/0/0/0/0/0/0/0 Lore% 18 Gallery% 18 Achievement% 24 Wizard Run 0 Options --------- Layout 1 ASCII 0 Keyboard 1 Movement Numpad Keybinds 0 Fullscreen 1 Font 20/SmallcapsGlow Map View 25x17 Zoom Use 96% Tactical HUD 1 Map Filters NONE Filters NONE Steam X RUN: 5cfd2ead-166f-47ce-b823-2e98f4e2aabd